bitfinex/quotes_ETHUSD_20240817
["timestamp","ask_amount","ask_price","bid_price","bid_amount"]
[1723899605604,6.396874,2608.6,2607.9,0.17784279]
[1723899605806,6.396874,2608.6,2608.0,4.13825287]
[1723899606002,2.2908,2608.6,2608.3,2.87534]
[1723899606327,3.6158,2608.6,2608.3,2.87534]
[1723899607129,3.6158,2608.6,2608.1,2.87554]
[1723899607315,3.6158,2608.6,2608.2,4.20918427]
[1723899607630,3.6158,2608.6,2608.1,5.75113]
[1723899607790,3.6158,2608.6,2608.2,0.55]
[1723899608189,2.2908,2608.5,2608.2,0.55]
[1723899608400,2.2908,2608.5,2608.2,3.42553]
[1723899608787,2.2908,2608.5,2608.1,2.87554]
[1723899609734,2.2908,2608.5,2608.2,1.33367116]
[1723899609915,2.2908,2608.5,2608.1,2.87554]
[1723899610115,2.2908,2608.5,2608.2,1.33363657]
[1723899610322,2.2908,2608.5,2608.1,5.75114]
[1723899610516,2.2908,2608.5,2608.2,1.33365983]
[1723899610698,2.2908,2608.5,2608.1,5.75114]
[1723899611026,2.2908,2608.5,2608.2,4.20917157]
[1723899611191,2.2908,2608.5,2608.2,2.87553]
[1723899611832,2.64,2608.6,2608.3,2.87537]
[1723899612038,2.64,2608.6,2608.4,2.87526]
[1723899612192,2.64,2608.6,2608.3,3.79329979]
[1723899612193,2.64,2608.6,2608.5,2.87521]
[1723899612392,2.64,2608.6,2608.3,6.3007]
[1723899612931,2.64,2608.6,2608.3,3.42533]
[1723899613139,2.64,2608.6,2608.3,6.3007]
[1723899613532,3.13308,2608.6,2608.1,5.87555]
[1723899613699,2.64,2608.6,2608.3,2.87537]
[1723899614598,2.64,2608.6,2608.1,8.75117]
[1723899614599,2.4531,2608.5,2608.1,8.75117]
[1723899615627,2.4531,2608.5,2608.2,2.87554]
[1723899615824,3.20167879,2608.5,2608.3,3.0]
[1723899620258,1.325,2608.4,2608.1,2.87558]
[1723899620456,2.4531,2608.3,2608.2,3.0]
[1723899620657,2.4531,2608.3,2608.0,3.0]
[1723899620853,2.4531,2608.2,2608.0,3.0]
[1723899621052,2.4531,2608.2,2607.9,5.75163]
[1723899621053,2.4531,2608.2,2607.9,2.87581]
[1723899621257,3.7781,2608.2,2607.9,2.87581]
[1723899621558,2.4531,2608.1,2607.7,2.87602]
[1723899621867,2.4531,2608.1,2607.8,2.8759]
[1723899622047,2.4531,2608.2,2607.9,5.75162]
[1723899622220,2.4531,2608.2,2607.9,2.87581]
[1723899634972,2.83091,2608.2,2607.9,2.87581]
[1723899636370,4.15591,2608.2,2607.9,2.87581]
[1723899636536,2.4442,2608.1,2607.9,2.87581]
[1723899638968,2.4442,2608.4,2607.8,3.20812786]
[1723899639171,2.4442,2608.4,2608.2,2.87548]
[1723899642472,2.4442,2608.4,2608.2,2.86472059]
[1723899647292,19.77,2608.5,2608.2,1.325]
[1723899647467,19.77,2608.5,2608.4,5.75064]
[1723899647812,19.77,2608.5,2608.4,9.08455186]
[1723899647968,19.77,2608.5,2608.4,9.63455186]
[1723899648365,10.09,2608.6,2608.4,9.63455186]
[1723899648366,2.64,2608.6,2608.5,5.75042]
[1723899648671,2.64,2608.6,2608.5,15.72907822]
[1723899649070,2.64,2608.6,2608.5,14.92515036]
[1723899649365,2.64,2608.6,2608.5,13.43636181]
[1723899650166,2.64,2608.6,2608.5,16.31157181]
[1723899650371,1.84001913,2608.6,2608.5,16.71624246]
[1723899652060,1.84001913,2608.6,2608.5,16.31047903]
[1723899652256,1.84001913,2608.6,2608.5,15.50926036]
[1723899652607,1.84001913,2608.6,2608.5,16.31047903]
[1723899652975,1.84001913,2608.6,2608.5,16.31009737]
[1723899653700,1.84001913,2608.6,2608.5,15.5088787]
[1723899655543,1.84001913,2608.6,2608.5,16.31009737]
[1723899656079,1.84001913,2608.6,2608.5,15.5088787]
[1723899657730,1.84001913,2608.6,2608.5,15.50876482]
[1723899658732,1.84001913,2608.6,2608.5,13.50892135]
[1723899659233,1.84001913,2608.6,2608.5,13.50892395]
[1723899659387,1.84001913,2608.6,2608.5,15.50886488]
[1723899660182,1.84001913,2608.6,2608.5,13.50892395]
[1723899661696,1.84001913,2608.6,2608.5,12.17563]
[1723899661902,1.84001913,2608.6,2608.5,9.30042]
[1723899662299,4.20831913,2608.6,2608.5,5.87521]
[1723899662840,4.20831913,2608.6,2608.5,3.0]
[1723899663739,4.20831913,2608.6,2608.5,5.87521]
[1723899664251,4.20831913,2608.6,2608.5,3.0]
[1723899664595,4.62915104,2608.6,2608.5,3.0]
[1723899665226,4.20831913,2608.6,2608.5,3.0]
[1723899667051,4.20831913,2608.6,2608.4,3.0]
[1723899667052,2.3683,2608.5,2608.4,3.0]
[1723899668519,2.3683,2608.5,2608.4,5.87532]
[1723899671341,2.3683,2608.5,2608.4,3.0]
[1723899672562,2.3683,2608.5,2608.4,5.87532]
[1723899672879,2.3683,2608.5,2608.4,3.0]
[1723899674268,2.3683,2608.5,2608.4,5.87532]
[1723899674768,2.3683,2608.5,2608.4,3.0]
[1723899674945,2.78913191,2608.5,2608.2,3.0]
[1723899675265,2.3683,2608.5,2608.2,3.0]
[1723899676069,2.3683,2608.5,2608.2,5.87548]
[1723899677284,2.3683,2608.5,2608.1,2.87557]
[1723899677486,2.3683,2608.5,2607.8,1.325]
[1723899677487,2.3821,2608.1,2607.8,2.87595]
[1723899677807,2.3821,2607.9,2607.8,2.87598]
[1723899678730,2.3821,2607.9,2607.6,2.87611]
[1723899679093,2.3821,2607.9,2607.8,2.87598]
[1723899680124,2.3821,2607.9,2607.8,5.87598]
[1723899681394,2.3821,2607.9,2607.8,3.0]
[1723899681596,2.3821,2607.9,2607.7,3.0]
[1723899683631,2.3821,2607.9,2607.7,5.87608]
[1723899685016,2.3821,2607.9,2607.7,3.0]
[1723899686337,2.3821,2607.9,2607.7,5.87602]
[1723899696523,2.3821,2607.9,2607.7,3.0]
[1723899696871,1.325,2607.8,2607.7,3.0]
[1723899697078,2.481,2607.7,2607.6,3.0]
[1723899697445,2.481,2607.7,2607.5,3.0]
[1723899699345,2.481,2607.5,2607.2,2.87657]
[1723899699551,1.325,2607.4,2607.0,5.87679]
[1723899699752,2.481,2607.3,2607.1,3.0]
[1723899704803,2.481,2607.3,2607.1,5.87673]
[1723899704999,1.325,2607.6,2607.1,3.0]
[1723899705000,2.481,2607.5,2607.1,3.0]
[1723899706257,2.481,2607.5,2607.1,5.87674]
[1723899714852,1.325,2607.4,2607.1,3.0]
[1723899715115,2.3756,2607.3,2607.1,3.0]
[1723899716200,2.3756,2607.3,2606.9,3.0]
[1723899716400,2.3756,2607.1,2606.9,3.0]
[1723899717618,2.3756,2607.1,2606.8,2.87702]
[1723899717894,2.3756,2607.1,2606.6,8.75449]
[1723899718223,2.3756,2607.1,2606.7,5.87717]
[1723899718757,2.3756,2607.1,2606.8,2.87707]
[1723899723189,2.3756,2607.1,2606.9,2.87691]
[1723899723510,2.3756,2607.1,2607.0,2.87686]
[1723899724305,2.3756,2607.4,2607.1,2.8767]
[1723899724468,2.3756,2607.4,2607.1,5.75339]
[1723899724675,2.3756,2607.4,2607.2,2.87664]
[1723899724906,2.3756,2607.4,2607.1,2.87669]
[1723899725359,2.61316,2607.4,2607.1,2.87669]
[1723899725565,3.93816,2607.4,2607.1,2.87669]
[1723899727699,1.56256,2607.4,2607.1,2.87669]
[1723899727909,2.3756,2607.3,2607.1,2.87669]
[1723899729263,2.3756,2607.3,2606.9,2.87687]
[1723899730860,2.3756,2607.3,2607.0,2.87685]
[1723899731058,2.3756,2607.2,2607.0,2.87685]
[1723899731474,2.3756,2607.2,2606.9,2.87687]
[1723899731672,2.3756,2607.2,2606.8,2.87706]
[1723899732561,2.3756,2607.1,2606.8,2.87706]
[1723899732784,3.2065258,2607.1,2606.8,2.87706]
[1723899735294,3.2065258,2607.1,2606.7,3.0]
[1723899735496,2.4358,2607.0,2606.7,3.0]
[1723899735897,2.4358,2607.0,2606.7,5.87719]
[1723899737626,2.4358,2607.0,2606.7,5.87714]
[1723899738796,2.4358,2607.0,2606.7,5.87713]
[1723899739352,2.4358,2607.0,2606.7,8.75427]
[1723899739761,2.4358,2607.0,2606.7,5.87713]
[1723899744832,2.4358,2606.8,2606.3,2.87756]
[1723899745034,2.4358,2606.7,2606.4,1.33456822]
[1723899745344,2.4358,2606.7,2606.3,2.87756]
[1723899745874,2.4358,2606.7,2606.3,2.87754]
[1723899746909,2.4358,2606.6,2606.1,6.87776]
[1723899747221,2.4358,2606.6,2606.2,4.33468729]
[1723899747431,2.4358,2606.6,2606.2,3.0]
[1723899748004,2.4358,2606.5,2606.2,3.0]
[1723899750019,2.4358,2606.5,2606.3,2.87762]
[1723899751442,2.4358,2606.9,2606.4,2.87753]
[1723899751648,5.3128,2606.9,2606.3,2.87762]
[1723899751848,2.4358,2606.8,2606.3,2.87762]
[1723899755072,2.4358,2606.8,2606.3,5.75519]
[1723899755259,2.4358,2606.8,2606.3,2.87757]
[1723899755628,2.4358,2606.8,2606.3,5.75515]
[1723899757334,2.4358,2606.8,2606.4,2.87752]
[1723899758079,2.4358,2606.8,2606.3,5.75515]
[1723899758370,2.3342,2607.3,2606.8,2.87702]
[1723899758937,2.3342,2607.3,2606.9,2.87696]
[1723899759253,2.855268,2607.3,2606.9,2.87696]
[1723899761679,2.3342,2607.3,2607.2,2.87664]
[1723899763559,2.3342,2607.3,2607.2,5.75328]
[1723899764409,2.3342,2607.3,2607.1,2.8767]
[1723899764573,1.325,2607.3,2607.0,2.8768]
[1723899764894,2.4865,2607.2,2607.0,5.75361]
[1723899765397,2.4865,2607.2,2607.1,2.87675]
[1723899767407,2.4865,2607.2,2607.0,2.8768]
[1723899776184,2.4865,2607.2,2607.1,2.87675]
[1723899776923,2.4236,2607.7,2607.3,2.87652]
[1723899777982,2.4236,2607.7,2607.4,2.87642]
[1723899778184,2.4236,2607.6,2607.4,2.87642]
[1723899780616,2.4236,2607.6,2607.3,2.87652]
[1723899781597,2.4236,2607.6,2607.4,2.8764]
[1723899782743,2.4236,2607.6,2607.3,2.87651]
[1723899784750,2.4236,2607.6,2607.4,2.87642]
[1723899784947,2.4236,2607.9,2607.6,2.87618]
[1723899785251,2.4236,2607.9,2607.6,2.87614]
[1723899785450,2.4236,2607.9,2607.8,2.87598]
[1723899785634,21.095,2608.2,2607.6,3.17142385]
[1723899785635,2.4236,2608.2,2608.0,2.8757]
[1723899786653,2.83747078,2608.2,2607.8,5.75181]
[1723899786803,2.83747078,2608.2,2607.9,2.87583]
[1723899787223,2.4236,2608.2,2607.9,2.87583]
[1723899787904,2.4236,2608.2,2608.0,2.87575]
[1723899788951,2.4236,2608.2,2607.8,5.7518]
[1723899789308,2.4236,2608.2,2607.9,2.87585]
[1723899789890,2.4236,2608.2,2608.0,2.87575]
[1723899790393,3.7486,2608.2,2607.8,2.87589]
[1723899790578,4.86846,2608.2,2607.9,2.87585]
[1723899792153,4.86846,2608.2,2607.8,2.87589]
[1723899792361,2.4236,2608.1,2607.6,2.87612]
[1723899792560,2.4236,2608.0,2607.7,5.87606]
[1723899793300,2.4236,2608.0,2607.8,2.87598]
[1723899795559,2.4236,2608.0,2607.8,2.87591]
[1723899795789,2.4236,2608.0,2607.7,5.87606]
[1723899802197,2.3795,2608.2,2607.8,2.87595]
[1723899803763,2.3795,2608.2,2608.1,2.87565]
[1723899803971,2.3795,2608.4,2608.2,2.87543]
[1723899809683,2.3795,2608.4,2608.2,5.75091]
[1723899809973,2.3795,2608.4,2608.2,2.87543]
[1723899815000,2.3795,2608.4,2608.2,5.75091]
[1723899815205,2.3795,2608.4,2608.2,2.87543]
[1723899815402,11.78361913,2608.6,2608.3,2.87537]
[1723899815788,11.78361913,2608.6,2608.2,2.87543]
[1723899817418,15.145299,2608.6,2608.2,2.87543]
[1723899819809,2.4936,2608.5,2608.1,3.0]
[1723899820806,2.4936,2608.5,2608.1,5.87565]
[1723899821518,2.4936,2608.4,2608.1,3.0]
[1723899821718,2.4936,2608.2,2608.0,3.0]
[1723899825147,2.4936,2608.2,2608.0,5.87575]
[1723899826706,2.4936,2608.4,2608.1,2.87565]
[1723899826907,2.4936,2608.4,2608.2,2.87551]
[1723899827106,2.4936,2608.4,2608.1,2.87565]
[1723899827345,2.4936,2608.4,2608.1,2.87559]
[1723899828324,2.4936,2608.4,2608.0,3.0]
[1723899828325,2.4936,2608.3,2608.0,3.0]
[1723899830930,2.4936,2608.3,2608.0,5.87576]
[1723899831130,2.4936,2608.3,2608.0,3.0]
[1723899835556,2.4936,2608.3,2608.1,3.0]
[1723899835892,2.3287,2608.2,2607.8,5.87593]
[1723899836096,2.3287,2608.2,2607.9,1.3338258]
[1723899836399,2.3287,2608.2,2607.8,5.87593]
[1723899836754,2.3287,2608.2,2607.9,1.33384034]
[1723899837056,2.3287,2608.2,2607.8,5.87593]
[1723899837256,2.3287,2608.2,2607.9,1.33384979]
[1723899837489,2.3287,2608.2,2607.8,5.87593]
[1723899837792,2.3287,2608.2,2607.9,1.33384292]
[1723899837981,2.3287,2608.2,2607.8,5.87593]
[1723899838592,2.3287,2608.2,2607.9,1.33385574]
[1723899838899,2.3287,2608.2,2607.8,5.87593]
[1723899839405,2.3287,2608.2,2607.9,1.33384589]
[1723899839614,4.20074,2608.1,2607.5,3.67745867]
[1723899839757,2.3287,2608.0,2607.5,2.87624]
[1723899840098,2.81259782,2608.0,2607.5,2.87624]
[1723899841102,2.81259782,2608.0,2607.6,3.0]
[1723899842250,2.81259782,2608.0,2607.6,5.8762]
[1723899842482,2.3287,2608.0,2607.6,5.8762]
[1723899843301,7.45,2608.3,2607.8,1.325]
[1723899843604,2.3287,2608.2,2607.8,1.325]
[1723899843759,2.3287,2608.2,2607.9,0.55]
[1723899843956,2.3287,2608.2,2608.0,2.87575]
[1723899844410,2.3287,2608.1,2607.6,6.67735867]
[1723899844715,2.3287,2608.1,2607.7,4.13579417]
[1723899844908,2.3287,2608.1,2607.8,1.3338302]
[1723899845070,2.3287,2608.1,2607.7,2.87608]
[1723899845261,2.3287,2608.1,2607.8,1.33383158]
[1723899845606,2.3287,2608.1,2607.7,2.87608]
[1723899845915,2.3287,2608.1,2607.8,1.33384673]
[1723899846056,2.3287,2608.1,2607.7,2.87608]
[1723899846290,2.3287,2608.1,2607.8,3.33461283]
[1723899846489,2.3287,2608.1,2607.7,2.87608]
[1723899846690,2.3287,2608.1,2607.8,3.33465787]
[1723899846934,2.3287,2608.1,2607.7,0.80121867]
[1723899847229,2.3287,2608.1,2607.6,5.87614]
[1723899847389,2.3287,2608.1,2607.7,3.33483229]
[1723899847711,2.3287,2608.1,2607.6,8.75229]
[1723899847891,2.3287,2608.1,2607.7,1.33394351]
[1723899848095,2.3287,2608.1,2607.6,8.75229]
[1723899848283,2.3287,2608.1,2607.7,1.3339429]
[1723899848483,2.3287,2608.1,2607.6,8.75229]
[1723899848716,2.3287,2608.1,2607.7,1.33394289]
[1723899848917,2.3287,2608.1,2607.6,8.75229]
[1723899849117,2.3287,2608.1,2607.7,1.33394299]
[1723899849336,2.3287,2608.1,2607.6,8.75229]
[1723899849538,2.3287,2608.1,2607.7,3.3347796]
[1723899849831,2.3287,2608.1,2607.6,8.75229]
[1723899849986,2.3287,2608.1,2607.7,1.33391796]
[1723899850186,2.3287,2608.1,2607.6,8.75229]
[1723899850430,2.3287,2608.1,2607.7,1.33391793]
[1723899850640,2.3287,2608.1,2607.6,8.75229]
[1723899850833,2.3287,2608.1,2607.7,1.33391788]
[1723899851134,2.3287,2608.1,2607.6,8.75229]
[1723899851305,2.3287,2608.1,2607.7,1.33390801]
[1723899851505,2.3287,2608.1,2607.6,8.75227]
[1723899851697,2.3287,2608.1,2607.7,3.33475837]
[1723899851891,2.3287,2608.1,2607.6,9.55348867]
[1723899851892,2.3287,2608.1,2607.6,8.75227]
[1723899852093,2.3287,2608.1,2607.7,3.33476465]
[1723899852294,2.3287,2608.1,2607.6,5.87613]
[1723899852615,2.3287,2608.0,2607.6,8.75226]
[1723899852932,2.3287,2608.0,2607.6,5.87613]
[1723899853304,2.3287,2608.0,2607.6,8.75227]
[1723899853513,2.3287,2608.0,2607.6,5.87613]
[1723899854390,2.3287,2608.0,2607.6,8.75228]
[1723899854602,2.3287,2608.0,2607.6,5.87613]
[1723899857326,2.3287,2608.0,2607.6,8.75224]
[1723899857739,2.3287,2608.0,2607.7,2.87609]
[1723899858296,2.3287,2608.0,2607.8,2.87598]
[1723899859351,2.3287,2608.0,2607.6,9.55344867]
[1723899859646,2.3287,2608.0,2607.7,3.33465326]
[1723899859808,2.3287,2608.0,2607.6,6.67732867]
[1723899860018,2.3287,2608.0,2607.7,3.3346525]
[1723899860205,2.3287,2608.0,2607.9,2.87587]
[1723899861143,2.4952,2608.2,2607.9,2.87587]
[1723899861353,2.4952,2608.2,2608.0,0.48765739]
[1723899861506,7.45,2608.3,2608.1,2.87565]
[1723899861705,2.4952,2608.4,2608.1,2.87559]
[1723899862036,2.4952,2608.4,2608.2,1.33360371]
[1723899862347,2.4952,2608.4,2608.1,2.87558]
[1723899862847,2.4952,2608.4,2608.1,5.75116]
[1723899863063,1.84001913,2608.6,2608.2,6.20942108]
[1723899863064,4.33521913,2608.6,2608.2,6.20942108]
[1723899863206,4.33521913,2608.6,2608.4,2.87532]
[1723899864140,1.84001913,2608.6,2608.5,5.75042]
[1723899864347,1.84001913,2608.6,2608.5,9.30042]
[1723899867549,1.84001913,2608.6,2608.5,6.42521]
[1723899869678,1.84001913,2608.6,2608.5,9.30042]
[1723899870022,1.84001913,2608.6,2608.5,13.13108441]
[1723899870933,1.84001913,2608.6,2608.5,15.13106519]
[1723899871269,1.84001913,2608.6,2608.5,13.13108441]
[1723899871719,1.84001913,2608.6,2608.5,15.1310157]
[1723899871922,1.84001913,2608.6,2608.5,13.13108441]
[1723899872123,1.84001913,2608.6,2608.5,10.63378441]
[1723899872438,1.84001913,2608.6,2608.5,9.30042]
[1723899876570,1.84001913,2608.6,2608.5,8.75042]
[1723899877831,1.84001913,2608.6,2608.5,9.30042]
[1723899896772,1.84001913,2608.6,2608.5,6.42521]
[1723899896986,1.84001913,2608.6,2608.5,5.87521]
[1723899902276,1.84001913,2608.6,2608.5,8.75042]
[1723899904328,1.84001913,2608.6,2608.5,7.20861285]
[1723899904680,1.84001913,2608.6,2608.5,5.87521]
[1723899905232,1.84001913,2608.6,2608.5,7.20865826]
[1723899906073,1.84001913,2608.6,2608.5,5.87521]
[1723899906227,1.84001913,2608.6,2608.5,7.2086549]
[1723899906430,1.84001913,2608.6,2608.5,9.20879889]
[1723899906943,1.84001913,2608.6,2608.5,7.2086549]
[1723899907140,1.84001913,2608.6,2608.5,9.20884318]
[1723899907672,1.84001913,2608.6,2608.5,12.08405318]
[1723899908058,1.84001913,2608.6,2608.5,12.084076]
[1723899908556,1.84001913,2608.6,2608.5,9.208866]
[1723899909072,1.84001913,2608.6,2608.5,12.084076]
[1723899909433,1.84001913,2608.6,2608.5,9.208866]
[1723899909858,1.84001913,2608.6,2608.5,12.084076]
[1723899910068,1.84001913,2608.6,2608.5,9.208866]
[1723899910307,1.84001913,2608.6,2608.5,10.01008467]
[1723899910483,1.84001913,2608.6,2608.5,12.88529467]
[1723899910635,1.84001913,2608.6,2608.5,10.01008467]
[1723899910835,1.84001913,2608.6,2608.5,13.43529467]
[1723899911979,1.84001913,2608.6,2608.5,9.30042]
[1723899912354,1.84001913,2608.6,2608.5,10.62542]
[1723899913833,1.84001913,2608.6,2608.5,13.50063]
[1723899914468,1.84001913,2608.6,2608.5,10.62542]
[1723899914668,1.84001913,2608.6,2608.5,13.50063]
[1723899916395,1.83906077,2608.6,2608.5,13.50063]
[1723899920605,1.03910791,2608.6,2608.5,21.10325003]
[1723899921312,1.03910791,2608.6,2608.5,18.22804003]
[1723899922128,1.03910791,2608.6,2608.5,16.62549759]
[1723899922838,1.03910791,2608.6,2608.5,18.22804003]
[1723899923884,1.03910791,2608.6,2608.5,21.10325003]
[1723899924127,1.03910791,2608.6,2608.5,18.43630935]
[1723899924333,1.03910791,2608.6,2608.5,21.10325003]
[1723899924730,1.03910791,2608.6,2608.5,18.22804003]
[1723899924899,1.03910791,2608.6,2608.5,17.77011312]
[1723899925102,1.03910791,2608.6,2608.5,18.43638512]
[1723899925518,1.03910791,2608.6,2608.5,21.1033258]
[1723899927296,0.04454555,2608.6,2608.5,24.37910871]
[1723899927528,5.55e-06,2608.6,2608.5,22.80936272]
[1723899927864,5.55e-06,2608.6,2608.5,25.58545017]
[1723899929016,5.55e-06,2608.6,2608.5,25.15736272]
[1723899929235,5.55e-06,2608.6,2608.5,24.72399336]
[1723899929636,5.55e-06,2608.6,2608.5,20.17711341]
[1723899929823,5.55e-06,2608.6,2608.5,21.50211341]
[1723899930615,5.55e-06,2608.6,2608.5,20.17711341]
[1723899930815,5.55e-06,2608.6,2608.5,18.43500424]
[1723899931060,5.55e-06,2608.6,2608.5,21.10194492]
[1723899931356,5.55e-06,2608.6,2608.5,18.43500424]
[1723899931557,5.55e-06,2608.6,2608.5,21.10194492]
[1723899931911,5.55e-06,2608.6,2608.5,19.77694492]
[1723899932125,5.55e-06,2608.6,2608.5,21.10194492]
[1723899932410,5.55e-06,2608.6,2608.5,18.22673492]
[1723899934222,5.55e-06,2608.6,2608.5,18.22709757]
[1723899934760,5.55e-06,2608.6,2608.5,21.10230757]
[1723899935421,5.55e-06,2608.6,2608.5,19.50073688]
[1723899935820,5.55e-06,2608.6,2608.5,19.93410624]
[1723899936232,5.55e-06,2608.6,2608.5,22.80931624]
[1723899937544,5.55e-06,2608.6,2608.5,22.37594688]
[1723899938742,5.55e-06,2608.6,2608.5,22.37557748]
[1723899941329,5.55e-06,2608.6,2608.5,24.37532217]
[1723899941672,5.55e-06,2608.6,2608.5,22.37557748]
[1723899942233,5.55e-06,2608.6,2608.5,24.37517547]
[1723899942430,5.55e-06,2608.6,2608.5,22.37557748]
[1723899946864,5.55e-06,2608.6,2608.5,22.80894684]
[1723899947491,9.2e-06,2609.2,2609.0,5.74932]
[1723899947807,2.4402,2610.6,2610.4,2.87308]
[1723899947952,2.4402,2610.6,2610.4,2.87304]
[1723899948612,2.4402,2610.6,2610.4,2.87302]
[1723899948757,2.4402,2610.6,2610.5,2.87301]
[1723899950701,2.4402,2610.6,2610.4,2.87302]
[1723899950702,2.98885,2610.6,2610.4,2.87302]
[1723899951203,2.98885,2610.6,2610.3,2.87323]
[1723899951901,2.98885,2610.6,2610.2,2.87327]
[1723899952086,2.4402,2610.4,2610.3,5.8732]
[1723899953432,2.4402,2610.4,2610.0,5.87356]
[1723899953614,2.4402,2610.4,2610.1,2.87339]
[1723899953822,2.65032,2610.3,2610.2,3.0]
[1723899953996,2.4063,2610.3,2610.2,3.0]
[1723899954192,3.0463,2610.7,2610.6,2.8729]
[1723899954396,3.0463,2610.7,2610.6,9.03309]
[1723899954641,3.0463,2610.7,2610.6,9.2958]
[1723899955534,3.0463,2610.7,2610.6,8.7458]
[1723899955733,5.4526,2610.7,2610.6,8.7458]
[1723899956439,5.4526,2610.7,2610.6,9.2958]
[1723899958293,3.0463,2610.7,2610.6,9.2958]
[1723899958523,3.0463,2610.7,2610.6,18.2106]
[1723899959531,3.0463,2610.7,2610.6,25.55803175]
[1723899959532,1e-05,2610.7,2610.6,25.55803175]
[1723899959889,1e-05,2610.7,2610.6,23.56017375]
[1723899960090,3.1010101,2611.0,2610.9,8.61771]
[1723899960323,1e-07,2611.0,2610.9,13.37204605]
[1723899960530,1e-07,2611.0,2610.9,18.53892752]
[1723899960739,1e-07,2611.0,2610.9,24.41126755]
[1723899960919,1e-07,2611.0,2610.9,25.03130052]
[1723899961108,1e-07,2611.0,2610.9,24.23753755]
[1723899961493,1e-07,2611.0,2610.9,25.03130052]
[1723899961696,1e-07,2611.0,2610.9,22.23988702]
[1723899962523,1e-07,2611.0,2610.9,20.90812]
[1723899963540,1e-07,2611.0,2610.9,21.47127795]
[1723899964397,1e-07,2611.0,2610.9,22.05279557]
[1723899965815,2.8e-06,2611.8,2611.7,13.73836]
[1723899966016,1e-05,2612.4,2612.3,8.61309]
[1723899966196,0.01,2613.2,2613.0,11.48104]
[1723899966397,1e-05,2613.1,2613.0,11.61078]
[1723899967046,1e-05,2613.1,2613.0,9.29052]
[1723899967622,0.01,2613.2,2613.1,5.7403]
[1723899967823,0.01,2613.2,2613.1,9.2903]
[1723899968450,2.5092,2613.2,2613.1,3.0]
[1723899968659,2.5092,2613.2,2613.0,3.0]
[1723899968660,2.76062,2613.2,2613.0,3.0]
[1723899968857,2.76062,2613.2,2612.5,2.87077]
[1723899969059,0.276562,2613.1,2612.5,2.87077]
[1723899969212,0.276562,2613.1,2612.7,2.87051]
[1723899969538,2.4992,2613.0,2612.5,2.87074]
[1723899969725,0.2775762,2612.9,2612.5,2.87074]
[1723899969920,0.2775762,2612.9,2612.6,2.8707]
[1723899970344,0.2775762,2612.9,2612.7,3.0]
[1723899971110,0.2775762,2612.9,2612.8,2.87048]
[1723899971306,0.2775762,2612.9,2612.8,5.87048]
[1723899971552,2.4992,2613.0,2612.9,2.87037]
[1723899971758,0.01,2613.2,2613.1,5.7403]
[1723899971914,0.01,2613.2,2613.1,9.2903]
[1723899973254,2.5092,2613.2,2613.1,3.0]
[1723899974151,2.76062,2613.2,2613.1,3.0]
[1723899974352,2.76062,2613.2,2613.0,3.0]
[1723899974556,2.76062,2613.2,2612.6,5.74126]
[1723899974557,2.76062,2613.2,2612.7,3.0]
[1723899975117,2.76062,2613.2,2612.8,2.87041]
[1723899975341,2.76062,2613.2,2612.9,3.0]
[1723899976252,2.5092,2613.2,2613.0,3.42026]
[1723899976675,2.5092,2613.2,2613.1,2.87015]
[1723899977141,2.5092,2613.2,2613.1,3.0]
[1723899978175,2.5092,2613.2,2613.1,5.87015]
[1723899978318,2.5092,2613.2,2613.1,3.0]
[1723899978519,2.5092,2613.2,2613.1,8.7403]
[1723899978720,2.5092,2613.2,2613.1,9.2903]
[1723899978918,0.01,2613.2,2613.1,12.16045]
[1723899980231,0.005,2613.3,2613.1,12.16045]
[1723899980232,1e-05,2613.3,2613.2,8.61012]
[1723899980432,3.15651515,2614.0,2613.9,8.60781]
[1723899980648,3.15651515,2614.0,2613.9,12.15781]
[1723899980821,3.15151515,2614.0,2613.9,15.02708]
[1723899981162,5.15e-06,2614.0,2613.9,15.02708]
[1723899981928,5.15e-06,2614.0,2613.9,9.28854]
[1723899983376,5.15e-06,2614.0,2613.9,6.41927]
[1723899983677,5.15e-06,2614.0,2613.9,8.73854]
[1723899984175,5.15e-06,2614.0,2613.9,5.86927]
[1723899984755,5.15e-06,2614.0,2613.6,2.86957]
[1723899985332,5.15e-06,2614.0,2613.8,2.86931]
[1723899985610,5.15e-06,2614.0,2613.9,2.86927]
[1723899986240,5.15e-06,2614.0,2613.9,3.41927]
[1723899986576,5.15e-06,2614.0,2613.9,6.41927]
[1723899988075,5.15e-06,2614.0,2613.9,3.0]
[1723899988273,5.15e-06,2614.0,2613.5,2.86969]
[1723899988585,5.15e-06,2614.0,2613.4,2.86974]
[1723899988894,2.3392,2613.9,2613.2,2.86998]
[1723899989043,2.86944,2613.8,2613.0,2.87017]
[1723899989238,5.2087,2613.7,2613.0,2.87017]
[1723899989456,2.3392,2613.6,2613.0,2.87017]
[1723899990175,2.3392,2613.5,2613.0,2.87017]
[1723899990386,0.52088,2613.4,2613.0,2.87017]
[1723899990598,0.52088,2613.4,2612.8,2.87043]
[1723899990903,2.3392,2613.3,2613.0,2.87024]
[1723899991953,2.3392,2613.3,2613.0,5.74042]
[1723899992300,2.3392,2613.7,2613.1,3.55]
[1723899992456,2.3392,2613.7,2613.6,2.8696]
[1723899992800,2.3392,2613.7,2613.6,6.4196]
[1723899992971,2.3392,2613.7,2613.6,3.55]
[1723899993178,2.57312,2613.7,2613.6,0.55]
[1723899993380,2.57312,2613.7,2613.4,2.86981]
[1723899993559,2.57312,2613.7,2613.5,3.0]
[1723899993758,2.57312,2613.7,2613.4,3.0]
[1723899994505,2.57312,2613.7,2613.3,3.0]
[1723899995206,2.57312,2613.7,2613.3,5.86993]
[1723899996074,2.57312,2613.7,2613.3,3.0]
[1723899996273,0.544251,2613.6,2613.2,3.0]